Workbook

Sheet Abschlusszahlen
B3: Aktiva | C3: Bilanz der Tropic GmbH zum 31.12.20.. | G3: Passiva
C4: Vorjahr | D4: Berichtsjahr | F4: Vorjahr | G4: Berichtsjahr
B5: Anlagevermögen | C5: 4050000 | D5: 4890000 | E5: Eigenkapital | F5: 2800000 | G5: 3300000
B6: Umlaufvermögen | C6: 677000 | D6: 1024000 | E6: Fremdkapital | F6: 1927000 | G6: 2614000
C7: =SUM(C5:C6) -> 4727000 | D7: =SUM(D5:D6) -> 5914000 | F7: =F5+F6 -> 4727000 | G7: =G5+G6 -> 5914000
C9: Gewinn- und Verlust
C10: Vorjahr | D10: Berichtsjahr | F10: Vorjahr | G10: Berichtsjahr
B11: Bestandsminderungen | C11: 0 | D11: 0 | E11: Umsatzerlöse | F11: 5500000 | G11: 8200000
B12: Materialaufwand | C12: 3036000 | D12: 5168000 | E12: Bestandsmehrungen | F12: 20000 | G12: 280000
B13: Personalaufwand | C13: 1892000 | D13: 2550000 | E13: Zinserträge | F13: 4000 | G13: 12000
B14: Abschreibungen | C14: 170000 | D14: 260000 | E14: Sonstige Erträge | F14: 23000 | G14: 25000
B15: Steuern | C15: 19000 | D15: 29000 | E15: Außerordentliche Erträge
B16: Sonstige Aufwendungen | C16: 120000 | D16: 120000 | E16: Verlust | F16: =IF(F20>SUM(F11:F15),F20-SUM(F11:F15),0) -> 0 | G16: =IF(G20>SUM(G11:G15),G20-SUM(G11:G15),0) -> 0
B17: Zinsaufwand | C17: 120000 | D17: 110000
B18: Außerordentliche Aufwendungen
B19: Gewinn | C19: =IF(C20>SUM(C11:C18),C20-SUM(C11:C18),0) -> 190000 | D19: =IF(D20>SUM(D11:D18),D20-SUM(D11:D18),0) -> 280000
C20: =IF(SUM($F$11:$F$15)>SUM($C$11:$C$18),SUM($F$11:$F$15),SUM($C$11:$C$18)) -> 5547000 | D20: =IF(SUM($G$11:$G$15)>SUM($D$11:$D$18),SUM($G$11:$G$15),SUM($D$11:$D$18)) -> 8517000 | F20: =IF(SUM($F$11:$F$15)>SUM($C$11:$C$18),SUM($F$11:$F$15),SUM($C$11:$C$18)) -> 5547000 | G20: =IF(SUM($G$11:$G$15)>SUM($D$11:$D$18),SUM($G$11:$G$15),SUM($D$11:$D$18)) -> 8517000
B22: Zusatzangaben | C22: Vorjahr | D22: Berichtsjahr | F22: Eingabefelder
B23: kalkulatorischer Unternehmerlohn | C23: 100000 | D23: 100000 | E23: bei Personengesellschaften | F23: In diese Felder können Sie die Daten einer Bilanz und einer Gewinn- und Verlustrechnung eintragen.
B24: Anfangseigenkapital des Vorjahres | C24: 2600000
B25: Anfangsbilanzsumme des Vorjahres | C25: 5000000
B26: Zuführung zu den Rückstellungen | C26: 40000 | D26: 20000

Sheet Kennziffern
B2: Kennziffern der Gewinn- und Verlustrechnung
C4: Vorjahr | D4: Berichtsjahr
B5: Eigenkapital am Jahresanfang | C5: =Abschlusszahlen!C24 -> 2600000 | D5: =C6 -> 2800000
B6: Eigenkapital am Jahresende | C6: =Abschlusszahlen!F5 -> 2800000 | D6: =Abschlusszahlen!G5 -> 3300000
B7: durchschnittliches Eigenkapital | C7: =(C6+C5)/2 -> 2700000 | D7: =(D6+D5)/2 -> 3050000
B8: Gesamtkapital am Jahresanfang | C8: =Abschlusszahlen!C25 -> 5000000 | D8: =C9 -> 4727000
B9: Gesamtkapital am Jahresende | C9: =Abschlusszahlen!F7 -> 4727000 | D9: =Abschlusszahlen!G7 -> 5914000
B10: durchschnittliches Gesamtkapital | C10: =(C9+C8)/2 -> 4863500 | D10: =(D9+D8)/2 -> 5320500
B11: Jahresüberschuss | C11: =IF(Abschlusszahlen!C19>0,Abschlusszahlen!C19,(Abschlusszahlen!F16*-1)) -> 190000 | D11: =IF(Abschlusszahlen!D19>0,Abschlusszahlen!D19,(Abschlusszahlen!G16*-1)) -> 280000
B12: Kapitalumschlag
B13: Eigenkapitalumschlagshäufigkeit | C13: =Abschlusszahlen!F11/C7 -> 2.037037037 | D13: =Abschlusszahlen!G11/D7 -> 2.68852459
B14: Gesamtkapitalumschlagshäufigkeit | C14: =Abschlusszahlen!F11/C10 -> 1.130872828 | D14: =Abschlusszahlen!G11/D10 -> 1.541208533
B15: Eigenkapitalumschlagsdauer in Tagen | C15: =360/C13 -> 176.7272727 | D15: =360/D13 -> 133.902439
B16: Gesamtkapitalumschlagsdauer in Tagen | C16: =360/C14 -> 318.3381818 | D16: =360/D14 -> 233.5829268
B17: Gewinnkorrekturen
B18: bereinigter Jahresgewinn | C18: =IF(Abschlusszahlen!C19>0,Abschlusszahlen!C19+Abschlusszahlen!C18-Abschlusszahlen!F15-Abschlusszahlen!C23,Abschlusszahlen!F16-Abschlusszahlen!C18+Abschlusszahlen!F15-Abschlusszahlen!C23) -> 90000 | D18: =IF(Abschlusszahlen!D19>0,Abschlusszahlen!D19+Abschlusszahlen!D18-Abschlusszahlen!G15-Abschlusszahlen!D23,Abschlusszahlen!G16+Abschlusszahlen!D18-Abschlusszahlen!G15-Abschlusszahlen!D23) -> 180000
B19: Rentabilitäten
B20: Eigenkapitalrentabilität | C20: =C11/C7 -> 0.07037037037 | D20: =D11/D7 -> 0.09180327869
B21: Gesamtkapitalrentabilität | C21: =(C11+Abschlusszahlen!C17)/Kennziffern!C10 -> 0.06374010486 | D21: =(D11+Abschlusszahlen!D17)/Kennziffern!D10 -> 0.07330138145
B22: Umsatzrentabilität | C22: =C11/Abschlusszahlen!F11 -> 0.03454545455 | D22: =D11/Abschlusszahlen!G11 -> 0.03414634146
B23: Selbstfinanzierungskraft
B24: Cashflow | C24: =C11+Abschlusszahlen!C14+Abschlusszahlen!C26 -> 400000 | D24: =D11+Abschlusszahlen!D14+Abschlusszahlen!D26 -> 560000
B25: Cashflow-Umsatzverdienstrate | C25: =C24/Abschlusszahlen!F11 -> 0.07272727273 | D25: =D24/Abschlusszahlen!G11 -> 0.06829268293

Sheet Auswertung
B2: Auswertung
B4: Abweichungstoleranz in die gelben Felder eintragen.
B6: niedriger Abweichungswert | D6: -0.01
B7: Differenz = Abweichungstoleranz
B8: hoher Abweichungswert | D8: 0.01
B11: Eigenkapitalumschlagshäufigkeit
C12: Vorjahr | D12: Berichtsjahr | E12: Veränderung | I12: Tolereranzbereich
B13: Umschlagshäufigkeit des Eigenkapitals | C13: =Kennziffern!C13 -> 2.037037037 | D13: =Kennziffern!D13 -> 2.68852459 | E13: =D13-C13 -> 0.6514875531 | I13: niedriger Wert | J13: hoher Wert
B14: Eigenkapitalumschlagsdauer in Tagen | C14: =Kennziffern!C15 -> 176.7272727 | D14: =Kennziffern!D15 -> 133.902439 | E14: =D14-C14 -> -42.8248337 | I14: -0.1 | J14: 0.1
B15: =IF(D13>C13,Texte!A4,IF(D13<C13,Texte!A5,Texte!A6)) -> Bessere Ausnutzung des Eigenkapitaleinsatzes. | I15: =IF(I14>J14,"Toleranzbereich ungültig!","") -> 
B16: =IF(D13>C13,Texte!A7,IF(D13<C13,Texte!A8,Texte!A9)) -> Schnellerer Eigenkapitalrückfluss über die Umsatzerlöse.
B18: Gesamtkapitalumschlagshäufigkeit
C19: Vorjahr | D19: Berichtsjahr | E19: Veränderung | I19: Tolereranzbereich
B20: Umschlagshäufigkeit des Gesamtkapitals | C20: =Kennziffern!C14 -> 1.130872828 | D20: =Kennziffern!D14 -> 1.541208533 | E20: =D20-C20 -> 0.4103357048 | I20: niedriger Wert | J20: hoher Wert
B21: Gesamtkapitalumschlagsdauer in Tagen | C21: =Kennziffern!C16 -> 318.3381818 | D21: =Kennziffern!D16 -> 233.5829268 | E21: =D21-C21 -> -84.75525499 | I21: -0.1 | J21: 0.1
B22: =IF(D20>C20,Texte!A12,IF(D20<C20,Texte!A13,Texte!A14)) -> Bessere Ausnutzung des Gesamtkapitaleinsatzes. | I22: =IF(I21>J21,"Toleranzbereich ungültig!","") -> 
B23: =IF(D20>C20,Texte!A15,IF(D20<C20,Texte!A16,Texte!A17)) -> Schnellerer Gesamtkapitalrückfluss über die Umsatzerlöse.
B25: Eigenkapitalrentabilität
C26: Vorjahr | D26: Berichtsjahr | E26: Veränderung | I26: Tolereranzbereich in %
B27: Eigenkapitalrentabilität | C27: =Kennziffern!C20 -> 0.07037037037 | D27: =Kennziffern!D20 -> 0.09180327869 | E27: =D27-C27 -> 0.02143290832 | I27: niedriger Wert | J27: hoher Wert
B28: =IF(D27>C27,Texte!A20,IF(D27<C27,Texte!A21,Texte!A22)) -> Erhöhung der Eigenkapitalrentabilität gegenüber dem Vorjahr. | I28: -1 | J28: 1
B29: =IF(D27>C27,Texte!A23,IF(D27<C27,Texte!A24,Texte!A25)) -> Der Eigenkapitaleinsatz hat sich besser verzinst. | I29: =IF(I28>J28,"Toleranzbereich ungültig!","") -> 
B32: Gesamtkapitalrentabilität
C33: Vorjahr | D33: Berichtsjahr | E33: Veränderung | I33: Tolereranzbereich in %
B34: Gesamtkapitalrentabilität | C34: =Kennziffern!C21 -> 0.06374010486 | D34: =Kennziffern!D21 -> 0.07330138145 | E34: =D34-C34 -> 0.009561276586 | I34: niedriger Wert | J34: hoher Wert
I35: -1 | J35: 1
B36: =IF(D34>C34,Texte!A28,IF(D34<C34,Texte!A29,Texte!A30)) -> Erhöhung der Gesamtkapitalrentabilität gegenüber dem Vorjahr. | I36: =IF(I35>J35,"Toleranzbereich ungültig!","") -> 
B37: =IF(D34>C34,Texte!A31,IF(D34<C34,Texte!A32,Texte!A33)) -> Der Gesamtkapitaleinsatz hat sich besser verzinst.
B39: Umsatzrentabilität
C40: Vorjahr | D40: Berichtsjahr | E40: Veränderung | I40: Tolereranzbereich in %
B41: Umsatzrentabilität | C41: =Kennziffern!C22 -> 0.03454545455 | D41: =Kennziffern!D22 -> 0.03414634146 | E41: =D41-C41 -> -0.000399113082 | I41: niedriger Wert | J41: hoher Wert
I42: -0.5 | J42: 0.5
B43: =IF(D41>C41,Texte!A36,IF(D41<C41,Texte!A37,Texte!A38)) -> Verminderung des Gewinnanteils an den Umsatzerlösen. | I43: =IF(I42>J42,"Toleranzbereich ungültig1!","") -> 
B44: =IF(D41>C41,Texte!A39,IF(D41<C41,Texte!A40,Texte!A41)) -> Niedrigerer Anteil am Umsatz für Investitionen und Gewinnausschüttung.
B46: Cashflow
C47: Vorjahr | D47: Berichtsjahr | E47: Veränderung | I47: Tolereranzbereich in %
B48: Cashlfow | C48: =Kennziffern!C24 -> 400000 | D48: =Kennziffern!D24 -> 560000 | E48: =D48-C48 -> 160000 | I48: niedriger Wert | J48: hoher Wert
B49: Cashflow-Umsatzverdienstrate | C49: =Kennziffern!C25 -> 0.07272727273 | D49: =Kennziffern!D25 -> 0.06829268293 | E49: =D49-C49 -> -0.0044345898 | I49: -0.5 | J49: 0.5
B50: =IF(D48>C48,Texte!A44,IF(C48<D48,Texte!A45,Texte!A46)) -> Erhöhter Cashflow gegenüber dem Vorjahr. | I50: =IF(I49>J49,"Toleranzbereich ungültig!","") -> 
B51: =IF(D49>C49,Texte!A47,IF(D49<C49,Texte!A48,Texte!A49)) -> Verminderter Cashflowanteil an den Umsatzerlösen.

Sheet Texte
A1: Texte
A3: Eigenkapitalumschlagshäufigkeit
A4: Bessere Ausnutzung des Eigenkapitaleinsatzes.
A5: Schlechtere Ausnutzung des Eigenkapitaleinsatzes.
A6: Unveränderte Ausnutzung des Eigenkapitaleinsatzes.
A7: Schnellerer Eigenkapitalrückfluss über die Umsatzerlöse.
A8: Langsamerer Eigenkapitalrückfluss über die Umsatzerlöse.
A9: Unveränderte Dauer des Eigenkaitalrückflusses.
A11: Gesamtkapitalumschlagshäufigkeit
A12: Bessere Ausnutzung des Gesamtkapitaleinsatzes.
A13: Schlechtere Ausnutzung des Gesamtkapitaleinsatzes.
A14: Unveränderte Ausnutzung des Gesamtkapitaleinsatzes.
A15: Schnellerer Gesamtkapitalrückfluss über die Umsatzerlöse.
A16: Langsamerer Gesamtkapitalrückfluss über die Umsatzerlöse.
A17: Unveränderte Dauer des Gesamtkapitalrückflusses.
A19: Eigenkapitalrentabilität
A20: Erhöhung der Eigenkapitalrentabilität gegenüber dem Vorjahr.
A21: Verminderung der Eigenkapitalrentabilität gegenüber dem Vorjahr.
A22: Unveränderte Eigenkapitalrentabilität.
A23: Der Eigenkapitaleinsatz hat sich besser verzinst.
A24: Der Eigenkapitaleinsatz hat sich schlechter verzinst.
A25: Unveränderte Eigenkapitalverzinsung
A27: Gesamtkapitalrentabilität
A28: Erhöhung der Gesamtkapitalrentabilität gegenüber dem Vorjahr.
A29: Verminderung der Gesamtkapitalrentabilität gegenüber dem Vorjahr.
A30: Unterveränderte Gesamtkapitalrentabilität
A31: Der Gesamtkapitaleinsatz hat sich besser verzinst.
A32: Der Gesamtkapitaleinsatz hat sich schlechter verzinst.
A33: Unveränderte Gesamtkapitalverzinsung
A35: Umsatzrentabilität
A36: Erhöhung des Gewinnanteils an den Umsatzerlösen.
A37: Verminderung des Gewinnanteils an den Umsatzerlösen.
A38: Unveränderter Gewinnanteil an den Umsatzerlösen
A39: Höhere Anteil am Umsatz für Investitionen und Gewinnausschüttung.
A40: Niedrigerer Anteil am Umsatz für Investitionen und Gewinnausschüttung.
A41: Unveränderter Anteil am Umsatz für Investitionen und Gewinnausschüttung.
A43: Liqudität
A44: Erhöhter Cashflow gegenüber dem Vorjahr.
A45: Verminderter Cashflow gegenüber dem Vorjahr.
A46: Unveränderter Cashflow.
A47: Verbesserter Cashflowanteil an den Umsatzerlösen.
A48: Verminderter Cashflowanteil an den Umsatzerlösen.
A49: Unveränderter Cashflowanteil an den Umsatzerlösen.
